bitfinex/quotes_BTCUSD_20250723
["timestamp","ask_amount","ask_price","bid_price","bid_amount"]
[1753258592558,0.79160658,118550.0,118540.0,0.68244824]
[1753258592928,0.83004127,118550.0,118540.0,0.68244824]
[1753258593117,0.83004127,118550.0,118540.0,0.68041824]
[1753258593685,0.82160658,118550.0,118540.0,0.68041824]
[1753258594491,0.83004127,118550.0,118540.0,0.68041824]
[1753258595042,0.86576127,118550.0,118540.0,0.67735555]
[1753258595294,0.53722302,118550.0,118540.0,0.67735555]
[1753258595503,0.85732658,118550.0,118540.0,0.67735555]
[1753258595803,0.86576127,118550.0,118540.0,0.67735555]
[1753258596035,0.8910659,118550.0,118540.0,0.67735555]
[1753258596281,0.88263086,118550.0,118540.0,0.67735555]
[1753258596490,0.87419603,118550.0,118540.0,0.67735555]
[1753258596702,0.882631,118550.0,118540.0,0.67735555]
[1753258597250,0.89106611,118550.0,118540.0,0.67735555]
[1753258597452,0.882631,118550.0,118540.0,0.67735555]
[1753258601058,0.89106611,118550.0,118540.0,0.67735555]
[1753258601266,0.882631,118550.0,118540.0,0.67735555]
[1753258601593,0.89106604,118550.0,118540.0,0.67735555]
[1753258601893,0.89950115,118550.0,118540.0,0.67735555]
[1753258602299,0.89106604,118550.0,118540.0,0.67735555]
[1753258603004,0.882631,118550.0,118540.0,0.67735555]
[1753258603221,0.89106611,118550.0,118540.0,0.67735555]
[1753258603448,0.88804611,118550.0,118540.0,0.67735555]
[1753258603645,0.879611,118550.0,118540.0,0.67735555]
[1753258606674,0.57096255,118550.0,118540.0,0.6604844]
[1753258606899,0.882631,118550.0,118540.0,0.67735555]
[1753258607117,0.89106604,118550.0,118540.0,0.67735555]
[1753258607544,0.882631,118550.0,118540.0,0.67735555]
[1753258607779,0.83306134,118550.0,118540.0,0.67735555]
[1753258608005,0.80004134,118550.0,118540.0,0.67735555]
[1753258608229,0.80004134,118550.0,118540.0,0.67938555]
[1753258608744,0.80847617,118550.0,118540.0,0.67938555]
[1753258609008,0.81691114,118550.0,118540.0,0.67938555]
[1753258610037,0.81691107,118550.0,118540.0,0.67938555]
[1753258610387,0.80847617,118550.0,118540.0,0.67938555]
[1753258611019,0.80847617,118550.0,118540.0,0.68241555]
[1753258612065,0.80004134,118550.0,118540.0,0.68241555]
[1753258612629,0.80847624,118550.0,118540.0,0.68241555]
[1753258613090,0.80004134,118550.0,118540.0,0.68241555]
[1753258614065,0.48837261,118550.0,118540.0,0.68241555]
[1753258614417,0.80847617,118550.0,118540.0,0.68241555]
[1753258614601,0.80847617,118550.0,118540.0,0.67938555]
[1753258614825,0.81691107,118550.0,118540.0,0.67938555]
[1753258615754,0.82534611,118550.0,118540.0,0.67938555]
[1753258615958,0.88864611,118550.0,118540.0,0.67735555]
[1753258616159,0.89181611,118550.0,118540.0,0.67735555]
[1753258617603,0.53797302,118550.0,118540.0,0.67735555]
[1753258617842,0.39449303,118550.0,118540.0,0.68226555]
[1753258618098,0.46949302,118550.0,118540.0,0.71256555]
[1753258618332,0.47792763,118550.0,118540.0,0.74316555]
[1753258618584,0.79803134,118550.0,118540.0,0.74548555]
[1753258618828,0.46949302,118550.0,118540.0,0.71688555]
[1753258619070,0.78959658,118550.0,118540.0,0.71688555]
[1753258619279,0.78959658,118550.0,118540.0,0.68458555]
[1753258619901,0.71459659,118550.0,118540.0,0.68458555]
[1753258620116,0.78959658,118550.0,118540.0,0.68458555]
[1753258620315,0.71459659,118550.0,118540.0,0.68458555]
[1753258620530,0.78959658,118550.0,118540.0,0.71598555]
[1753258621154,0.78959658,118550.0,118540.0,0.74918555]
[1753258621587,0.71459659,118550.0,118540.0,0.74918555]
[1753258621794,0.78959658,118550.0,118540.0,0.74918555]
[1753258623438,0.78959658,118550.0,118540.0,0.68458555]
[1753258623648,0.80000119,118550.0,118540.0,0.68458555]
[1753258624018,0.86497119,118550.0,118540.0,0.67967555]
[1753258624218,0.87340602,118550.0,118540.0,0.67999555]
[1753258624438,0.87340595,118550.0,118540.0,0.67999555]
[1753258624641,0.87340595,118550.0,118540.0,0.54783555]
[1753258624847,0.87340595,118550.0,118540.0,0.67999555]
[1753258625050,0.88184085,118550.0,118540.0,0.67999555]
[1753258625483,0.87340595,118550.0,118540.0,0.67999555]
[1753258626048,0.88184085,118550.0,118540.0,0.67999555]
[1753258626748,0.87340595,118550.0,118540.0,0.67999555]
[1753258627183,0.88184085,118550.0,118540.0,0.67999555]
[1753258628102,0.87340595,118550.0,118540.0,0.67999555]
[1753258628715,0.88184085,118550.0,118540.0,0.67999555]
[1753258629112,0.87340595,118550.0,118540.0,0.67999555]
[1753258629314,0.51139763,118550.0,118540.0,0.67999555]
[1753258629531,0.80843595,118550.0,118540.0,0.68197555]
[1753258630376,0.81687085,118550.0,118540.0,0.68197555]
[1753258630589,0.49676729,118550.0,118540.0,0.68197555]
[1753258630799,0.81687085,118550.0,118540.0,0.68197555]
[1753258631327,0.82530589,118550.0,118540.0,0.68197555]
[1753258631834,0.81687085,118550.0,118540.0,0.68197555]
[1753258631989,0.82530582,118550.0,118540.0,0.68197555]
[1753258632462,0.83374093,118550.0,118540.0,0.68197555]
[1753258632655,0.86534093,118550.0,118540.0,0.68197555]
[1753258633485,0.86007582,118550.0,118540.0,0.67999555]
[1753258633704,0.86851093,118550.0,118540.0,0.67999555]
[1753258634131,1.04361184,118550.0,118540.0,0.33693731]
[1753258634352,1.09361184,118550.0,118540.0,0.33693731]
[1753258634571,1.09361184,118550.0,118540.0,0.46917731]
[1753258635028,0.07499999,118520.0,118510.0,0.26834353]
[1753258635260,0.39707355,118520.0,118510.0,0.33978353]
[1753258635739,0.39707355,118520.0,118510.0,0.54742353]
[1753258635972,0.40551044,118520.0,118510.0,0.67986353]
[1753258636203,0.39707355,118520.0,118510.0,0.67986353]
[1753258636434,0.40551044,118520.0,118510.0,0.67986353]
[1753258636690,0.40551044,118520.0,118510.0,0.68086353]
[1753258636903,0.41394747,118520.0,118510.0,0.68086353]
[1753258637341,0.41394747,118520.0,118510.0,0.68186353]
[1753258637562,0.59113261,118520.0,118510.0,0.65164022]
[1753258637786,0.70920261,118520.0,118510.0,0.65164022]
[1753258638024,0.70076572,118520.0,118510.0,0.65164022]
[1753258638222,0.69232869,118520.0,118510.0,0.31164015]
[1753258638437,0.69232869,118520.0,118510.0,0.327516]
[1753258638648,0.69232869,118520.0,118510.0,0.666516]
[1753258638889,0.69232869,118520.0,118510.0,0.47244]
[1753258639149,0.69332869,118520.0,118510.0,0.47244]
[1753258639389,0.65797475,118520.0,118510.0,0.47244]
[1753258640593,0.6495375,118520.0,118510.0,0.47244]
[1753258640800,0.6495375,118520.0,118510.0,0.4808781]
[1753258641431,0.6440975,118520.0,118510.0,0.47244]
[1753258642509,0.6440975,118520.0,118510.0,0.65807825]
[1753258642723,0.6440975,118520.0,118510.0,0.4808781]
[1753258643172,0.9433975,118520.0,118510.0,0.4808781]
[1753258643393,0.9433975,118520.0,118510.0,0.64964008]
[1753258643601,0.9433975,118520.0,118510.0,0.64964022]
[1753258643802,0.9433975,118520.0,118510.0,0.4808781]
[1753258644422,0.9433975,118520.0,118510.0,0.64964015]
[1753258644630,0.9433975,118520.0,118510.0,0.65807804]
[1753258645046,0.9433975,118520.0,118510.0,0.66651586]
[1753258645479,0.9433975,118520.0,118510.0,0.67495361]
[1753258645983,0.9433975,118520.0,118510.0,0.68339161]
[1753258646406,0.74721671,118520.0,118510.0,0.69182921]
[1753258646617,0.73189085,118520.0,118510.0,0.69380921]
[1753258646857,0.73189042,118520.0,118510.0,0.69380921]
[1753258647067,0.4471408,118520.0,118510.0,0.69380921]
[1753258647291,0.44714073,118520.0,118510.0,0.69380921]
[1753258647688,0.45557783,118520.0,118510.0,0.69380921]
[1753258648118,0.46401508,118520.0,118510.0,0.69380921]
[1753258648736,0.4387037,118520.0,118510.0,0.56136921]
[1753258649069,0.36985999,118520.0,118510.0,1.04625883]
[1753258649519,0.36989999,118520.0,118510.0,0.76150921]
[1753258649646,0.36889999,118520.0,118510.0,0.76150921]
[1753258651082,0.29934,118520.0,118510.0,0.76150921]
[1753258661244,0.36889999,118520.0,118510.0,0.76150921]
[1753258661462,0.29934,118520.0,118510.0,0.76150921]
[1753258663325,0.29934,118520.0,118510.0,1.08172916]
[1753258668966,0.29934,118520.0,118510.0,0.76150921]
[1753258669249,0.29934,118520.0,118510.0,1.08172916]
[1753258675257,0.36889999,118520.0,118510.0,1.08172916]
[1753258675673,0.29934,118520.0,118510.0,0.76150921]
[1753258675884,0.36889999,118520.0,118510.0,1.08172916]
[1753258676467,0.29934,118520.0,118510.0,1.08172916]
[1753258676782,0.36889999,118520.0,118510.0,0.76150921]
[1753258677081,0.36889999,118520.0,118510.0,0.69690921]
[1753258677324,0.30141,118520.0,118510.0,0.69690921]
[1753258677751,0.30984675,118520.0,118510.0,0.69690921]
[1753258677963,0.30984675,118520.0,118510.0,0.69388921]
[1753258677964,0.35048364,118520.0,118510.0,0.69388921]
[1753258678166,0.44440674,118520.0,118510.0,0.69388921]
[1753258678621,0.41160674,118520.0,118510.0,0.69388921]
[1753258678835,0.42004356,118520.0,118510.0,0.69388921]
[1753258679045,0.41160674,118520.0,118510.0,0.69388921]
[1753258679260,0.73182669,118520.0,118510.0,0.69388921]
[1753258679469,0.40316999,118520.0,118510.0,0.69388921]
[1753258679690,0.73182676,118520.0,118510.0,0.69388921]
[1753258680105,0.74026365,118520.0,118510.0,0.69388921]
[1753258680317,0.74870068,118520.0,118510.0,0.69118921]
[1753258680536,0.78425061,118520.0,118510.0,0.69118921]
[1753258681197,0.77581365,118520.0,118510.0,0.69118921]
[1753258681423,0.76737676,118520.0,118510.0,0.69118921]
[1753258682064,0.77581372,118520.0,118510.0,0.69118921]
[1753258682795,0.77581372,118520.0,118510.0,0.69110921]
[1753258683667,0.76737676,118520.0,118510.0,0.69110921]
[1753258683879,0.77581372,118520.0,118510.0,0.69110921]
[1753258684265,0.76737676,118520.0,118510.0,0.69110921]
[1753258684464,0.75893994,118520.0,118510.0,0.69110921]
[1753258684669,0.72338994,118520.0,118510.0,0.69110921]
[1753258684871,0.69118994,118520.0,118510.0,0.69315921]
[1753258685105,0.69962669,118520.0,118510.0,0.69315921]
[1753258685285,0.38784363,118520.0,118510.0,0.69315921]
[1753258685487,0.74311358,118520.0,118510.0,0.69110921]
[1753258685717,0.73467669,118520.0,118510.0,0.69110921]
[1753258685888,0.69962669,118520.0,118510.0,0.69315921]
[1753258686084,0.70806365,118520.0,118510.0,0.69315921]
[1753258686300,0.70806358,118520.0,118510.0,0.69315921]
[1753258686498,0.38784363,118520.0,118510.0,0.69315921]
[1753258686705,0.38784356,118520.0,118510.0,0.69315921]
[1753258687467,0.39628052,118520.0,118510.0,0.69315921]
[1753258689962,0.40471762,118520.0,118510.0,0.69315921]
[1753258690174,0.43681762,118520.0,118510.0,0.69315921]
[1753258690383,0.42838052,118520.0,118510.0,0.69315921]
[1753258690599,0.75703757,118520.0,118510.0,0.69315921]
[1753258690810,0.47910487,118520.0,118510.0,0.69098921]
[1753258691030,0.79088757,118520.0,118510.0,0.69098921]
[1753258691242,0.4791048,118520.0,118510.0,0.69098921]
[1753258691449,0.79932475,118520.0,118510.0,0.69098921]
[1753258692323,0.79088757,118520.0,118510.0,0.69098921]
[1753258692569,0.78783757,118520.0,118510.0,0.69098921]
[1753258693470,0.79627482,118520.0,118510.0,0.69098921]
[1753258693913,0.78783757,118520.0,118510.0,0.69098921]
[1753258694132,0.77096351,118520.0,118510.0,0.69098921]
[1753258694797,0.76252669,118520.0,118510.0,0.69098921]
[1753258695012,0.75408994,118520.0,118510.0,0.69098921]
[1753258695231,0.76252676,118520.0,118510.0,0.69098921]
[1753258695451,0.76252669,118520.0,118510.0,0.69098921]
[1753258696386,0.70140366,118520.0,118510.0,0.69098921]
[1753258696602,0.6929667,118520.0,118510.0,0.69098921]
[1753258696825,0.41150674,118520.0,118510.0,0.69098921]
[1753258697050,0.74016358,118520.0,118510.0,0.69098921]
[1753258697536,0.73172669,118520.0,118510.0,0.69098921]
[1753258698268,0.40306999,118520.0,118510.0,0.69303921]
[1753258698508,0.69962676,118520.0,118510.0,0.69303921]
[1753258699828,0.63006677,118520.0,118510.0,0.69303921]
[1753258700055,0.69962676,118520.0,118510.0,0.69303921]
[1753258700536,0.69118994,118520.0,118510.0,0.69303921]
[1753258701042,0.69962676,118520.0,118510.0,0.69303921]
[1753258701508,0.69118994,118520.0,118510.0,0.69303921]
[1753258702496,0.37940674,118520.0,118510.0,0.69303921]
[1753258702623,0.69962669,118520.0,118510.0,0.69303921]
[1753258703258,0.37096999,118520.0,118510.0,0.69303921]
[1753258703481,0.70806358,118520.0,118510.0,0.69303921]
[1753258704758,0.74988061,118520.0,118510.0,0.68255161]
[1753258704990,1.01750307,118520.0,118510.0,0.54251386]
[1753258705243,1.00062943,118520.0,118510.0,0.65691815]
[1753258705463,1.01031805,118520.0,118510.0,0.65691815]
[1753258706148,1.01031805,118520.0,118510.0,0.66535611]
[1753258706359,0.8318814,118520.0,118510.0,0.67379393]
[1753258706594,0.84131872,118520.0,118510.0,0.6822316]
[1753258706824,0.84975611,118520.0,118510.0,0.67379393]
[1753258707052,0.84975611,118520.0,118510.0,0.68223168]
[1753258707299,0.84975611,118520.0,118510.0,0.69066935]
[1753258707300,1.018504,118520.0,118510.0,0.69066935]
[1753258707803,1.018504,118520.0,118510.0,0.55938935]
[1753258708036,0.54201872,118520.0,118510.0,0.69062892]
[1753258708274,0.71076661,118520.0,118510.0,0.68219132]
[1753258708547,0.54201872,118520.0,118510.0,0.69062892]
[1753258709005,0.719204,118520.0,118510.0,0.69062892]
[1753258709777,0.719204,118520.0,118510.0,0.68219132]
[1753258709982,0.71076697,118520.0,118510.0,0.67375365]
[1753258710421,0.70232979,118520.0,118510.0,0.6653159]
[1753258710635,0.38210984,118520.0,118510.0,0.6653159]
[1753258710851,0.20492456,118520.0,118510.0,0.68219125]
[1753258711070,0.70232979,118520.0,118510.0,0.68219125]
[1753258711480,0.38210984,118520.0,118510.0,0.68219125]
[1753258711708,0.70332979,118520.0,118510.0,0.68219125]
[1753258711915,0.70332979,118520.0,118510.0,0.67375365]
[1753258712467,0.70332979,118520.0,118510.0,0.68219132]
[1753258713250,0.5345819,118520.0,118510.0,0.69062892]
[1753258713980,0.8338819,118520.0,118510.0,0.69062892]
[1753258714404,0.82544451,118520.0,118510.0,0.69062892]
[1753258714826,1.00262979,118520.0,118510.0,0.67375365]
[1753258715487,1.00262979,118520.0,118510.0,0.68219132]
[1753258716038,0.8338819,118520.0,118510.0,0.68219132]
[1753258716262,0.9941924,118520.0,118510.0,0.68219132]
[1753258716528,0.8338819,118520.0,118510.0,0.69062892]
[1753258717142,0.82544451,118520.0,118510.0,0.69062892]
[1753258717907,1.00262979,118520.0,118510.0,0.69062892]
[1753258718507,0.50522456,118520.0,118510.0,0.69062892]
[1753258718713,0.82544451,118520.0,118510.0,0.69062892]
[1753258718926,0.82544451,118520.0,118510.0,0.68219132]
[1753258719384,0.49678702,118520.0,118510.0,0.68219132]
[1753258719599,0.83388097,118520.0,118510.0,0.69062892]
[1753258719782,0.52209834,118520.0,118510.0,0.69062892]
[1753258720030,0.84231829,118520.0,118510.0,0.69062892]
[1753258720250,0.50522384,118520.0,118510.0,0.69062892]
[1753258720492,0.43140681,118520.0,118510.0,0.69268892]
[1753258720699,0.37089999,118520.0,118510.0,0.72651892]
[1753258721583,0.37089999,118520.0,118510.0,1.04673887]
[1753258721789,0.37089999,118520.0,118510.0,0.75801892]
[1753258722659,0.37089999,118520.0,118510.0,0.69591892]
[1753258722924,0.37089999,118520.0,118510.0,0.72591892]
[1753258723158,0.37089999,118520.0,118510.0,0.75641892]
[1753258724136,0.37933681,118520.0,118510.0,0.75641892]
[1753258725797,0.37933681,118520.0,118510.0,0.72591892]
[1753258726021,0.07159999,118520.0,118510.0,0.75801892]
[1753258726451,0.07159999,118520.0,118510.0,1.07823887]
[1753258728098,0.07159999,118520.0,118510.0,0.75801892]
[1753258728273,0.07159999,118520.0,118510.0,1.07823887]
[1753258729865,0.07159999,118520.0,118510.0,0.75801892]
[1753258731567,0.0714498,118520.0,118510.0,0.75801892]
[1753258732179,0.00188981,118520.0,118510.0,0.75801892]
[1753258732384,0.00188981,118520.0,118510.0,1.07823887]
[1753258732563,0.0714498,118520.0,118510.0,1.07823887]
[1753258732774,0.0714498,118520.0,118510.0,0.75801892]
[1753258735811,0.39166975,118520.0,118510.0,0.75801892]
[1753258736072,0.39166975,118520.0,118510.0,0.72591892]
[1753258736276,0.0714498,118520.0,118510.0,0.72591892]
[1753258736493,0.39166975,118520.0,118510.0,0.72591892]
[1753258736872,0.39166975,118520.0,118510.0,0.69591892]
[1753258737452,0.41068353,118520.0,118510.0,0.69591892]
[1753258737636,0.45082056,118520.0,118510.0,0.69268892]
[1753258737848,0.44238353,118520.0,118510.0,0.69268892]
[1753258738056,0.08202662,118520.0,118510.0,0.69268892]
[1753258738303,0.40224657,118520.0,118510.0,0.69588892]
[1753258738502,0.40224657,118520.0,118510.0,0.56448892]
[1753258738698,0.40224657,118520.0,118510.0,0.69588892]
[1753258739211,0.40224657,118520.0,118510.0,0.56448892]
[1753258739443,0.41068353,118520.0,118510.0,0.69588892]
[1753258739650,0.40224657,118520.0,118510.0,0.69588892]
[1753258739871,0.0714498,118520.0,118510.0,0.76048892]
[1753258740088,0.00188981,118520.0,118510.0,0.76048892]
[1753258740514,0.00188981,118520.0,118510.0,1.08070887]
[1753258740933,0.001,118520.0,118510.0,1.08070887]
[1753258741147,0.2993,118530.0,118520.0,0.2593592]
[1753258741344,0.2993,118530.0,118520.0,0.58153915]
[1753258741562,0.2993,118530.0,118520.0,0.58457915]
[1753258741778,0.2993,118530.0,118520.0,0.92457915]
[1753258741987,0.36885999,118530.0,118520.0,0.92457915]
[1753258742626,0.2993,118530.0,118520.0,0.92457915]
[1753258742838,0.09219303,118550.0,118540.0,0.53402645]
[1753258743046,0.14219303,118550.0,118540.0,0.66810645]
[1753258743291,0.14219303,118550.0,118540.0,0.67114645]
[1753258744254,0.14219303,118550.0,118540.0,0.68049527]
[1753258745221,0.14219303,118550.0,118540.0,0.67114645]
[1753258745658,0.14433303,118550.0,118540.0,0.67114645]
[1753258746098,0.14633303,118550.0,118540.0,0.67114645]
[1753258746993,0.14833303,118550.0,118540.0,0.67114645]
[1753258749315,0.09619303,118550.0,118540.0,0.67114645]
[1753258749543,0.16575302,118550.0,118540.0,0.70134645]
[1753258749777,0.09619303,118550.0,118540.0,0.73174645]
[1753258750243,0.09619303,118550.0,118540.0,1.01628961]
[1753258750480,0.09619303,118550.0,118540.0,0.73174645]
[1753258750684,0.09619303,118550.0,118540.0,1.01628961]
[1753258750934,0.16575302,118550.0,118540.0,0.73174645]
[1753258751139,0.09419303,118550.0,118540.0,1.01628961]
[1753258751348,0.16175302,118550.0,118540.0,1.01628961]
[1753258752240,0.16175302,118550.0,118540.0,1.01828961]
[1753258752878,0.16175302,118550.0,118540.0,1.01928961]
[1753258753079,0.16175302,118550.0,118540.0,0.73474645]
[1753258753342,0.16175302,118550.0,118540.0,1.01928961]
[1753258754471,0.09219303,118550.0,118540.0,1.01928961]
[1753258758436,0.09219303,118550.0,118540.0,0.73474645]
[1753258758624,0.09219303,118550.0,118540.0,1.01928961]
[1753258759030,0.16175302,118550.0,118540.0,1.01928961]
[1753258759906,0.09219303,118550.0,118540.0,1.01928961]
[1753258760134,0.16175302,118550.0,118540.0,1.01928961]
[1753258761432,0.16175302,118550.0,118540.0,0.73474645]
[1753258761763,0.16175302,118550.0,118540.0,1.01928961]
[1753258762151,0.09219303,118550.0,118540.0,1.01928961]
[1753258762347,0.16175302,118550.0,118540.0,1.01928961]
[1753258762557,0.09219303,118550.0,118540.0,1.01928961]
[1753258762768,0.16175302,118550.0,118540.0,1.01928961]
[1753258763976,0.16175302,118550.0,118540.0,0.88716961]
[1753258764183,0.09219303,118550.0,118540.0,0.67362645]
[1753258764391,0.16387302,118550.0,118540.0,0.67362645]
[1753258764827,0.16175302,118550.0,118540.0,0.67362645]
[1753258766203,0.16175302,118550.0,118540.0,0.54202645]
[1753258766399,0.16387302,118550.0,118540.0,0.53702645]
[1753258766608,0.51642618,118550.0,118540.0,0.66858645]
[1753258766865,0.23188302,118550.0,118540.0,0.66858645]
[1753258767068,0.22877302,118550.0,118540.0,0.67072645]
[1753258769084,0.23720763,118550.0,118540.0,0.67072645]
[1753258769481,0.22877302,118550.0,118540.0,0.67072645]
[1753258774513,0.22877302,118550.0,118540.0,0.67376645]
[1753258775258,0.24124232,118550.0,118540.0,0.67376645]
[1753258775475,0.24967708,118550.0,118540.0,0.67072645]
[1753258775918,0.24124232,118550.0,118540.0,0.67072645]
[1753258776667,0.23280763,118550.0,118540.0,0.67072645]
[1753258776915,0.22437302,118550.0,118540.0,0.67376645]
[1753258778273,0.19417302,118550.0,118540.0,0.67376645]
[1753258778452,0.16387302,118550.0,118540.0,0.67376645]
[1753258780144,0.16337302,118550.0,118540.0,0.67376645]
[1753258783997,0.48348419,118550.0,118540.0,0.54220645]
[1753258784241,0.56245356,118550.0,118540.0,0.67060645]
[1753258784464,0.22547302,118550.0,118540.0,0.67060645]
[1753258784680,0.54558419,118550.0,118540.0,0.67060645]
[1753258785255,0.54558419,118550.0,118540.0,0.67364645]
[1753258785499,0.51378419,118550.0,118540.0,0.67364645]
[1753258785865,0.5222188,118550.0,118540.0,0.67364645]
[1753258786225,0.5526188,118550.0,118540.0,0.67364645]
[1753258786451,0.54418419,118550.0,118540.0,0.67364645]
[1753258786675,0.55261888,118550.0,118540.0,0.67364645]
[1753258786894,0.5526188,118550.0,118540.0,0.67364645]
[1753258787534,0.5222188,118550.0,118540.0,0.67364645]
[1753258788479,0.51378419,118550.0,118540.0,0.67364645]
[1753258788965,0.52221888,118550.0,118540.0,0.67364645]
[1753258789381,0.5222188,118550.0,118540.0,0.67364645]
[1753258789802,0.5530188,118550.0,118540.0,0.53073098]
[1753258790010,0.79170428,118550.0,118540.0,0.6515153]
[1753258790221,0.79170428,118550.0,118540.0,0.65995112]
[1753258790452,0.85931185,118550.0,118540.0,0.003]
[1753258790683,0.85931185,118550.0,118540.0,0.1334]
[1753258790911,0.53920068,118550.0,118540.0,0.4734]
[1753258791144,0.85931185,118550.0,118540.0,0.1334]
[1753258791406,0.8238574,118550.0,118540.0,0.1334]
[1753258791620,0.8238574,118550.0,118540.0,0.4734]
[1753258791831,0.8258574,118550.0,118540.0,0.64211941]
[1753258792059,0.8258574,118550.0,118540.0,0.4734]
[1753258792283,0.8258574,118550.0,118540.0,0.65055523]
[1753258793003,0.81742222,118550.0,118540.0,0.64211941]
[1753258794168,0.81742222,118550.0,118540.0,0.65055538]
[1753258794713,0.81742222,118550.0,118540.0,0.65899127]
[1753258794940,0.83429237,118550.0,118540.0,0.65055538]
[1753258795163,0.83429237,118550.0,118540.0,0.66742695]
[1753258795388,0.84272762,118550.0,118540.0,0.67386256]
[1753258796331,0.84272762,118550.0,118540.0,0.6822981]
[1753258797142,0.84472762,118550.0,118540.0,0.6822981]
[1753258797875,0.67602188,118550.0,118540.0,0.6822976]
[1753258798202,0.28158302,118550.0,118540.0,0.5508976]
[1753258798386,0.14569303,118550.0,118540.0,0.6874976]
[1753258798625,0.21525302,118550.0,118540.0,0.6874976]
[1753258799078,0.14569303,118550.0,118540.0,0.6874976]
[1753258799276,0.21325302,118550.0,118540.0,0.6874976]
[1753258799487,0.21225302,118550.0,118540.0,0.6874976]
[1753258799695,0.21325302,118550.0,118540.0,0.6874976]
[1753258800295,0.14369303,118550.0,118540.0,0.6874976]
[1753258800520,0.09369303,118550.0,118540.0,0.6874976]
[1753258800734,0.14369303,118550.0,118540.0,0.6874976]
[1753258800948,0.09369303,118550.0,118540.0,0.6874976]
[1753258801169,0.16325302,118550.0,118540.0,0.6874976]
[1753258801394,0.21325302,118550.0,118540.0,0.6874976]
[1753258801843,0.58716408,118550.0,118540.0,0.6844176]
[1753258802066,0.59559912,118550.0,118540.0,0.6823776]
[1753258802290,0.59875912,118550.0,118540.0,0.6823776]
[1753258802518,0.77589941,118550.0,118540.0,0.53402659]
[1753258802738,0.4828085,118550.0,118540.0,0.67394199]
[1753258802975,0.59032486,118550.0,118540.0,0.67394199]
[1753258803754,0.58188975,118550.0,118540.0,0.67394199]
[1753258803968,0.5734545,118550.0,118540.0,0.67394199]
[1753258804182,0.56501974,118550.0,118540.0,0.67394199]
[1753258804396,0.56185974,118550.0,118540.0,0.67394199]
[1753258805030,0.27720302,118550.0,118540.0,0.67394199]
[1753258805244,0.14584303,118550.0,118540.0,0.67598199]
[1753258805466,0.21540302,118550.0,118540.0,0.67906199]
[1753258806618,0.21325302,118550.0,118540.0,0.67906199]
[1753258807046,0.22168763,118550.0,118540.0,0.67906199]
[1753258807252,0.21325302,118550.0,118540.0,0.67906199]
[1753258809488,0.14369303,118550.0,118540.0,0.67906199]
[1753258809688,0.21325302,118550.0,118540.0,0.67906199]
[1753258810662,0.22383763,118550.0,118540.0,0.67906199]
[1753258811094,0.23227246,118550.0,118540.0,0.67906199]
[1753258811528,0.23227239,118550.0,118540.0,0.67598199]
[1753258811740,0.59669898,118550.0,118540.0,0.67394199]
[1753258812039,0.59985898,118550.0,118540.0,0.67394199]
[1753258812248,0.59985891,118550.0,118540.0,0.67394199]
[1753258812398,0.60829395,118550.0,118540.0,0.67394199]
[1753258812599,0.60829445,118550.0,118540.0,0.67394199]
[1753258813292,0.59985934,118550.0,118540.0,0.67394199]
[1753258813497,0.76856452,118550.0,118540.0,0.52559098]
[1753258813710,0.76856501,118550.0,118540.0,0.65707098]
[1753258813924,0.76856501,118550.0,118540.0,0.6486353]
[1753258814188,0.76013018,118550.0,118540.0,0.6486353]
[1753258814383,0.83617251,118550.0,118540.0,0.47152]
[1753258817229,0.84548317,118550.0,118540.0,0.47152]
[1753258818910,0.56082645,118550.0,118540.0,0.47152]
[1753258819165,0.84548317,118550.0,118540.0,0.47152]
[1753258819702,0.84548317,118550.0,118540.0,0.64023941]
[1753258819914,0.84548317,118550.0,118540.0,0.65711098]
[1753258820130,0.84460734,118550.0,118540.0,0.66554659]
[1753258820946,0.84460734,118550.0,118540.0,0.65711098]
[1753258821607,0.84460734,118550.0,118540.0,0.65711112]
[1753258821819,0.84460734,118550.0,118540.0,0.66554687]
[1753258822978,0.84460734,118550.0,118540.0,0.67398248]
[1753258823926,0.84460734,118550.0,118540.0,0.66554687]
[1753258824161,0.84460734,118550.0,118540.0,0.67398255]
[1753258825429,0.84144734,118550.0,118540.0,0.68241816]
[1753258825576,0.84144734,118550.0,118540.0,0.67398255]
[1753258825984,0.77854734,118550.0,118540.0,0.67913255]
[1753258826190,0.77854734,118550.0,118540.0,0.68756816]
[1753258826393,0.80904734,118550.0,118540.0,0.68756816]
[1753258826645,0.80904734,118550.0,118540.0,0.68453816]
[1753258826986,0.84204734,118550.0,118540.0,0.68453816]
[1753258827134,0.83679251,118550.0,118540.0,0.66554687]
[1753258827618,0.83679251,118550.0,118540.0,0.67398255]
[1753258828563,0.55213579,118550.0,118540.0,0.67398255]
[1753258828769,0.83679251,118550.0,118540.0,0.68241809]
[1753258829733,0.83679251,118550.0,118540.0,0.67398255]
[1753258831243,0.82835747,118550.0,118540.0,0.66554687]
[1753258832314,0.54370075,118550.0,118540.0,0.66554687]
[1753258832529,0.82835747,118550.0,118540.0,0.66554687]
[1753258832714,0.82835747,118550.0,118540.0,0.67398248]
[1753258836622,0.83679251,118550.0,118540.0,0.68241802]
[1753258838234,0.83361251,118550.0,118540.0,0.6824176]
[1753258839748,0.83361251,118550.0,118540.0,0.67398213]
[1753258840673,0.85865868,118550.0,118540.0,0.66554659]
[1753258841430,0.86183868,118550.0,118540.0,0.66554659]
[1753258842564,0.86183868,118550.0,118540.0,0.64867523]
[1753258842974,0.85340364,118550.0,118540.0,0.64867523]
[1753258843191,0.84496839,118550.0,118540.0,0.47152]
[1753258844298,0.84496839,118550.0,118540.0,0.34]
[1753258844504,0.84496839,118550.0,118540.0,0.47116]
[1753258845917,0.84496839,118550.0,118540.0,0.64831538]
[1753258846516,0.84496839,118550.0,118540.0,0.51715538]
[1753258846729,0.84496839,118550.0,118540.0,0.64831538]
[1753258847956,0.84496839,118550.0,118540.0,0.47959597]
[1753258848264,0.84496839,118550.0,118540.0,0.65675127]
[1753258848609,0.83996839,118550.0,118540.0,0.65675127]
[1753258850302,0.83996839,118550.0,118540.0,0.64831538]
[1753258850912,0.83996839,118550.0,118540.0,0.47116]
[1753258853437,0.55531167,118550.0,118540.0,0.47116]
[1753258853677,0.83996839,118550.0,118540.0,0.47116]
[1753258857566,0.83996839,118550.0,118540.0,0.34]
[1753258857741,0.83996839,118550.0,118540.0,0.47112]
[1753258858334,0.83996839,118550.0,118540.0,0.47108]
[1753258858557,0.83996839,118550.0,118540.0,0.34]
[1753258858760,0.83996839,118550.0,118540.0,0.47108]
[1753258859213,0.8755404,118550.0,118540.0,0.47108]
[1753258863667,0.8755404,118550.0,118540.0,0.63979941]
[1753258864326,0.55531167,118550.0,118540.0,0.63979941]
[1753258864522,0.8755404,118550.0,118540.0,0.64823538]
[1753258865153,0.8755404,118550.0,118540.0,0.47108]
[1753258867832,0.8755404,118550.0,118540.0,0.34]
[1753258868021,0.8755404,118550.0,118540.0,0.47096]
[1753258869346,0.8755404,118550.0,118540.0,0.34]
[1753258869557,0.8755404,118550.0,118540.0,0.47096]
[1753258869968,0.8755404,118550.0,118540.0,0.34]
[1753258870407,0.8755404,118550.0,118540.0,0.47088]
[1753258870734,0.55531167,118550.0,118540.0,0.47088]